bitfinex-derivatives/quotes_BTCF0:USTF0_20250608
["timestamp","ask_amount","ask_price","bid_price","bid_amount"]
[1749397720702,0.89351946,106030.0,106020.0,0.57063781]
[1749397720907,0.89351946,106030.0,106020.0,0.99867781]
[1749397721206,0.92901946,106030.0,106020.0,0.99867781]
[1749397724209,0.92901946,106030.0,106020.0,0.96397781]
[1749397724407,0.96381946,106030.0,106020.0,0.96397781]
[1749397726207,0.96381946,106030.0,106020.0,0.92987781]
[1749397726408,1.00001946,106030.0,106020.0,0.92987781]
[1749397728320,1.00001946,106030.0,106020.0,0.50183781]
[1749397728615,1.00001946,106030.0,106020.0,0.93003781]
[1749397731717,1.00001946,106030.0,106020.0,1.07685101]
[1749397731920,1.00001946,106030.0,106020.0,0.93003781]
[1749397736035,0.96381946,106030.0,106020.0,0.93003781]
[1749397736217,0.96381946,106030.0,106020.0,0.96503781]
[1749397741538,0.60301946,106030.0,106020.0,0.96503781]
[1749397741838,0.96381946,106030.0,106020.0,0.96503781]
[1749397744338,0.60301946,106030.0,106020.0,0.96503781]
[1749397744538,0.96381946,106030.0,106020.0,0.96503781]
[1749397749342,0.96381946,106030.0,106020.0,0.93003781]
[1749397749736,0.99671946,106030.0,106020.0,0.93003781]
[1749397750434,0.99671946,106030.0,106020.0,0.92971771]
[1749397752241,0.99671946,106030.0,106020.0,0.74118081]
[1749397753043,0.99671946,106030.0,106020.0,0.92971781]
[1749397754340,0.99671946,106030.0,106020.0,0.74118081]
[1749397758241,0.99671946,106030.0,106020.0,0.74110081]
[1749397762751,0.99671946,106030.0,106020.0,0.31330081]
[1749397762954,0.99671946,106030.0,106020.0,0.74122081]
[1749397763354,0.93686756,106030.0,106020.0,0.74122081]
[1749397766653,0.93686756,106030.0,106020.0,0.74110081]
[1749397767854,0.57606756,106030.0,106020.0,0.74110081]
[1749397768050,0.93686756,106030.0,106020.0,0.74110081]
[1749397768265,0.93686756,106030.0,106020.0,0.88803807]
[1749397768755,0.93686756,106030.0,106020.0,0.68279547]
[1749397771462,1.11732714,106030.0,106020.0,0.25499547]
[1749397771658,1.11732714,106030.0,106020.0,0.6189988]
[1749397771858,1.11732714,106030.0,106020.0,0.1913188]
[1749397773266,1.54500714,106030.0,106020.0,0.1913188]
[1749397774066,1.55459275,106030.0,106020.0,0.1913188]
[1749397774367,1.55459275,106030.0,106020.0,0.22069547]
[1749397774562,1.55459275,106030.0,106020.0,0.14693726]
[1749397775852,1.55459275,106030.0,106010.0,0.3900268]
[1749397775853,0.188537,106020.0,106010.0,0.3900268]
[1749397776053,1.17650283,106020.0,106010.0,0.32296014]
[1749397776252,0.1885725,106000.0,105990.0,0.0687]
[1749397776456,1.00861166,106000.0,105990.0,0.56862581]
[1749397776656,1.04271166,106000.0,105990.0,0.49448]
[1749397776856,1.40351166,106000.0,105990.0,0.49448]
[1749397777562,1.40451166,106000.0,105990.0,0.49848]
[1749397777762,1.40451166,106000.0,105990.0,0.6870703]
[1749397777962,1.40351166,106000.0,105990.0,0.6840703]
[1749397778164,1.40351166,106000.0,105990.0,0.6850703]
[1749397778362,1.40351166,106000.0,105990.0,0.49648]
[1749397779267,1.22314221,106000.0,105990.0,0.53421]
[1749397779967,1.22314221,106000.0,105990.0,0.49991]
[1749397780167,1.22314221,106000.0,105990.0,0.6885004]
[1749397780564,1.22314221,106000.0,105990.0,0.7623834]
[1749397781957,1.22314221,106000.0,105990.0,0.573793]
[1749397782270,1.22314221,106000.0,105990.0,0.7623833]
[1749397786161,1.22314221,106000.0,105990.0,0.573793]
[1749397786472,1.22314221,106000.0,105990.0,0.7623833]
[1749397790472,1.22719099,106000.0,105990.0,0.7623833]
[1749397790876,1.22719099,106000.0,105990.0,0.145913]
[1749397791065,1.22719099,106000.0,105990.0,0.7623033]
[1749397791461,1.23647787,106000.0,105990.0,0.7623033]
[1749397792772,1.23647787,106000.0,105990.0,0.573713]
[1749397792978,1.23647787,106000.0,105990.0,0.145913]
[1749397794971,1.27027787,106000.0,105990.0,0.145913]
[1749397795776,1.19309099,106000.0,105990.0,0.3345033]
[1749397795975,1.19309099,106000.0,105990.0,0.3672033]
[1749397796775,1.09477099,106000.0,105990.0,0.3672033]
[1749397796975,1.19309099,106000.0,105990.0,0.3672033]
[1749397797569,1.09477099,106000.0,105990.0,0.3672033]
[1749397797776,1.19309099,106000.0,105990.0,0.3672033]
[1749397799281,1.19306446,106000.0,105990.0,0.3672033]
[1749397804476,1.19306446,106000.0,105990.0,0.51377114]
[1749397809482,0.83226446,106000.0,105990.0,0.51377114]
[1749397809783,0.87046446,106000.0,105990.0,0.51377114]
[1749397813485,0.87046446,106000.0,105990.0,0.48107114]
[1749397813684,1.05098764,106000.0,105990.0,0.48107114]
[1749397814085,1.09048764,106000.0,105990.0,0.90887114]
[1749397816985,1.09048764,106000.0,105990.0,0.68798084]
[1749397817187,1.09048764,106000.0,105990.0,0.87657104]
[1749397818590,1.09048764,106000.0,105990.0,0.68798084]
[1749397819184,1.27101082,106000.0,105990.0,0.26018084]
[1749397819389,1.67272624,106000.0,105990.0,0.113613]
[1749397819586,1.49220306,106000.0,105990.0,0.113613]
[1749397819987,1.67272624,106000.0,105990.0,0.113613]
[1749397823886,1.63181082,106000.0,105990.0,0.26018084]
[1749397824984,1.45128764,106000.0,105990.0,0.26018084]
[1749397833694,1.48878764,106000.0,105990.0,0.26018084]
[1749397837295,1.48878764,106000.0,105990.0,0.48617114]
[1749397837496,1.12798764,106000.0,105990.0,0.48617114]
[1749397838096,1.12798764,106000.0,105990.0,0.29758084]
[1749397838493,1.48878764,106000.0,105990.0,0.29758084]
[1749397844606,1.48878764,106000.0,105990.0,0.151013]
[1749397848911,1.52967929,106000.0,105990.0,0.151013]
[1749397854525,1.48878764,106000.0,105990.0,0.151013]
[1749397854723,1.48878764,106000.0,105990.0,0.29758084]
[1749397854918,1.48878764,106000.0,105990.0,0.151013]
[1749397855330,1.48878764,106000.0,105990.0,0.29758084]
[1749397857732,1.44928764,106000.0,105990.0,0.29758084]
[1749397861033,1.44948764,106000.0,105990.0,0.29758084]
[1749397861423,1.23076446,106000.0,105990.0,0.48617114]
[1749397861623,1.23076446,106000.0,105990.0,0.52107114]
[1749397861825,1.23056446,106000.0,105990.0,0.52107114]
[1749397862027,1.23076446,106000.0,105990.0,0.55637114]
[1749397863234,1.23076446,106000.0,105990.0,0.36778084]
[1749397863838,1.26736446,106000.0,105990.0,0.36778084]
[1749397864038,1.44788764,106000.0,105990.0,0.36778084]
[1749397864839,1.44788764,106000.0,105990.0,0.52107124]
[1749397866041,1.44788764,106000.0,105990.0,0.33248084]
[1749397869639,1.44788764,106000.0,105990.0,0.29758084]
[1749397870334,1.44788764,106000.0,105990.0,0.72534084]
[1749397870736,1.48248764,106000.0,105990.0,0.72534084]
[1749397871834,1.48248764,106000.0,105990.0,0.578773]
[1749397872340,1.48248764,106000.0,105990.0,0.151013]
[1749397875736,1.48248764,106000.0,105990.0,0.29758084]
[1749397876340,1.52370918,106000.0,105990.0,0.151013]
[1749397878645,1.70423236,106000.0,105990.0,0.151013]
[1749397880947,2.13215236,106000.0,105990.0,0.151013]
[1749397883549,2.13215236,106000.0,105990.0,0.113613]
[1749397893756,0.1885904,105990.0,105980.0,0.21780944]
[1749397893957,0.1886082,105980.0,105970.0,0.24213106]
[1749397894160,1.08127456,105980.0,105970.0,0.0369]
[1749397894861,1.08127456,105980.0,105970.0,0.30051469]
[1749397895059,1.08127456,105980.0,105970.0,0.2255259]
[1749397895260,1.08227456,105980.0,105970.0,0.2285259]
[1749397897363,1.08227456,105980.0,105970.0,0.075]
[1749397897757,1.08327456,105980.0,105970.0,0.078]
[1749397898463,1.12077456,105980.0,105970.0,0.0411]
[1749397898957,1.12077456,105980.0,105970.0,0.006]
[1749397899256,1.30129774,105980.0,105970.0,0.006]
[1749397899466,0.1886259,105970.0,105960.0,0.28101488]
[1749397899663,1.01307226,105970.0,105960.0,0.50350382]
[1749397900063,1.01307226,105970.0,105960.0,0.07578382]
[1749397900267,1.00496954,105970.0,105950.0,0.31003106]
[1749397900456,1.20825713,105960.0,105950.0,0.70299106]
[1749397900665,1.08993395,105960.0,105950.0,0.49776]
[1749397900965,1.12443395,105960.0,105950.0,0.49776]
[1749397902063,1.12143395,105960.0,105950.0,0.49776]
[1749397902566,1.12243395,105960.0,105950.0,0.50176]
[1749397902868,1.12243395,105960.0,105950.0,0.6904216]
[1749397903355,1.12343395,105960.0,105950.0,0.6904216]
[1749397903760,1.12343395,105960.0,105950.0,0.76602913]
[1749397903958,0.94291077,105960.0,105950.0,0.76602913]
[1749397904262,0.94291077,105960.0,105950.0,0.77950386]
[1749397904465,0.63000759,105960.0,105950.0,0.77950461]
[1749397904660,0.84121077,105960.0,105950.0,0.80052913]
[1749397904865,0.84121077,105960.0,105950.0,0.81398742]
[1749397905062,0.84121077,105960.0,105950.0,0.80052913]
[1749397905269,0.84121077,105960.0,105950.0,1.35530135]
[1749397905270,0.02116389,105960.0,105950.0,1.35530135]
[1749397905463,0.30808759,105960.0,105950.0,1.34185231]
[1749397905663,0.30808759,105960.0,105950.0,1.58311132]
[1749397905869,0.30788759,105960.0,105950.0,1.78834238]
[1749397906167,0.30808759,105960.0,105950.0,1.64145937]
[1749397906371,0.0022,105960.0,105950.0,1.64145937]
[1749397906672,0.2891237,105960.0,105950.0,1.64145937]
[1749397906872,0.10028,105960.0,105950.0,1.58293942]
[1749397907068,0.10048,105960.0,105950.0,1.58293942]
[1749397907763,0.0022,105960.0,105950.0,1.58293942]
[1749397908176,0.1908437,105960.0,105950.0,1.58293942]
[1749397911269,0.19489248,105960.0,105950.0,1.58293942]
[1749397912163,0.37541566,105960.0,105950.0,1.58293942]
[1749397913070,0.37541566,105960.0,105950.0,1.40241624]
[1749397913265,0.37541566,105960.0,105950.0,1.58293942]
[1749397913668,0.37541566,105960.0,105950.0,1.48856342]
[1749397914468,0.37541566,105960.0,105950.0,1.12776342]
[1749397914771,0.37541566,105960.0,105950.0,1.48856342]
[1749397915373,0.19489248,105960.0,105950.0,1.48856342]
[1749397916872,0.19489248,105960.0,105950.0,1.88856342]
[1749397917073,0.19489248,105960.0,105950.0,1.74185231]
[1749397917372,0.19489248,105960.0,105950.0,1.94708337]
[1749397917675,0.37541566,105960.0,105950.0,1.94708337]
[1749397919072,0.19489248,105960.0,105950.0,1.94708337]
[1749397923181,0.19489248,105960.0,105950.0,1.74185231]
[1749397923374,0.19489248,105960.0,105950.0,1.94763785]
[1749397923680,0.19489248,105960.0,105950.0,1.74185231]
[1749397929482,0.19489248,105960.0,105950.0,1.38105231]
[1749397929783,0.19489248,105960.0,105950.0,1.74185231]
[1749397931379,0.19489248,105960.0,105950.0,1.94770283]
[1749397932785,0.52502478,105970.0,105960.0,0.1886437]
[1749397932786,0.4392141,105970.0,105960.0,0.1886437]
[1749397933082,0.4392141,105970.0,105960.0,0.87709057]
[1749397933272,0.61973728,105970.0,105960.0,0.87709057]
[1749397933878,0.62073728,105970.0,105960.0,0.87709057]
[1749397934172,0.62073728,105970.0,105960.0,0.51629057]
[1749397934381,0.62173728,105970.0,105960.0,0.51729057]
[1749397936082,0.98253728,105970.0,105960.0,0.76504739]
[1749397936286,0.62173728,105970.0,105960.0,0.76508739]
[1749397936587,0.98253728,105970.0,105960.0,0.76508739]
[1749397937482,0.98253728,105970.0,105960.0,0.6179637]
[1749397937981,0.98253728,105970.0,105960.0,0.82381422]
[1749397939775,0.98658606,105970.0,105960.0,0.82381422]
[1749397939973,0.62578606,105970.0,105960.0,0.82381422]
[1749397941085,0.98658606,105970.0,105960.0,0.82381422]
[1749397941382,0.62578606,105970.0,105960.0,0.82381422]
[1749397941581,0.62578606,105970.0,105960.0,1.0043374]
[1749397942483,0.62578606,105970.0,105960.0,1.0042574]
[1749397948990,0.62578606,105970.0,105960.0,1.4042574]
[1749397950485,0.62578606,105970.0,105960.0,1.7650574]
[1749397950687,0.34658288,105970.0,105960.0,1.7650574]
[1749397950890,0.19482348,105970.0,105960.0,1.97908058]
[1749397951087,0.29350348,105970.0,105960.0,2.04608058]
[1749397951292,0.29369628,105970.0,105960.0,1.84023006]
[1749397952195,0.29369628,105970.0,105960.0,1.98758467]
[1749397956599,0.19501628,105970.0,105960.0,1.98758467]
[1749397956803,0.29369628,105970.0,105960.0,1.98758467]
[1749397957399,0.29349628,105970.0,105960.0,1.98758467]
[1749397957698,0.29369628,105970.0,105960.0,1.98758467]
[1749397960092,0.10507038,105970.0,105960.0,1.98758467]
[1749397960400,0.10507038,105970.0,105960.0,1.84023006]
[1749397960598,0.00639038,105970.0,105960.0,1.84023006]
[1749397960797,0.00619038,105970.0,105960.0,1.84023006]
[1749397960999,0.00639038,105970.0,105960.0,2.04640968]
[1749397961301,0.00639038,105970.0,105960.0,1.84023006]
[1749397961805,0.00639038,105970.0,105960.0,2.04638633]
[1749397962193,0.00639038,105970.0,105960.0,1.84023006]
[1749397963803,0.09844,105980.0,105970.0,0.1886259]
[1749397964108,0.2870481,105980.0,105970.0,1.03941474]
[1749397964510,0.2872481,105980.0,105970.0,1.03941474]
[1749397965008,0.2882481,105980.0,105970.0,1.03941474]
[1749397966309,0.2892481,105980.0,105970.0,1.04041474]
[1749397969110,0.29329688,105980.0,105970.0,1.04041474]
[1749397974613,0.29329688,105980.0,105970.0,1.44041474]
[1749397979513,0.29329688,105980.0,105970.0,1.25989156]
[1749397979714,0.29329688,105980.0,105970.0,1.44041474]
[1749397980511,0.32819688,105980.0,105970.0,1.44041474]
[1749397980912,0.36259688,105980.0,105970.0,1.44041474]
[1749397981712,0.54312006,105980.0,105970.0,0.96786566]
[1749397981914,1.11744324,105980.0,105970.0,0.8288]
[1749397982322,1.11744324,105980.0,105970.0,1.18204617]
[1749397982913,1.09606422,105980.0,105970.0,1.18204617]
[1749397983114,1.19450422,105980.0,105970.0,1.18204617]
[1749397984315,1.19450422,105980.0,105970.0,1.37067217]
[1749397984520,1.19450422,105980.0,105970.0,1.03486566]
[1749397989524,1.19450422,105980.0,105970.0,1.22349166]
[1749397992226,1.19450422,105980.0,105970.0,0.60706566]
[1749397992431,1.19450422,105980.0,105970.0,1.22349166]
[1749397992930,1.19450422,105980.0,105970.0,1.24950166]
[1749398001237,1.19450422,105980.0,105970.0,1.06087566]
[1749398001436,1.19450422,105980.0,105970.0,1.24950166]
[1749398004339,1.19450422,105980.0,105970.0,0.82170166]
[1749398004541,1.19450422,105980.0,105970.0,1.24950166]
[1749398006141,1.19450422,105980.0,105970.0,1.06087566]
[1749398007032,1.19450422,105980.0,105970.0,0.63307566]
[1749398007240,1.19450422,105980.0,105970.0,1.20811483]
[1749398007741,1.19450422,105980.0,105970.0,1.00204917]
[1749398008845,1.19450422,105980.0,105970.0,0.57428917]
[1749398009047,1.66266912,105980.0,105970.0,0.57428917]
[1749398009344,1.66266912,105980.0,105970.0,0.42701]
[1749398009946,1.62226422,105980.0,105970.0,0.42701]
[1749398014847,1.98306422,105980.0,105970.0,0.42701]
[1749398018752,1.26146422,105980.0,105970.0,0.42701]
[1749398019046,1.98306422,105980.0,105970.0,0.42701]
[1749398019956,1.37980324,105980.0,105970.0,0.42701]
[1749398020143,1.47812324,105980.0,105970.0,0.682436]
[1749398020341,1.37960324,105980.0,105970.0,0.682436]
[1749398020542,1.47792324,105980.0,105970.0,0.682436]
[1749398020742,1.47792324,105980.0,105970.0,0.713036]
[1749398021142,1.47812324,105980.0,105970.0,0.713036]
[1749398022856,1.47812324,105980.0,105970.0,0.52441]
[1749398024955,1.11732324,105980.0,105970.0,0.52441]
[1749398027459,1.11732324,105980.0,105970.0,0.7130365]
[1749398027758,1.11732324,105980.0,105970.0,0.52441]
[1749398028759,0.93680006,105980.0,105970.0,0.52441]
[1749398031763,0.93680006,105980.0,105970.0,0.67168917]
[1749398034270,0.95550529,105980.0,105970.0,0.67168917]
[1749398036165,0.95550529,105980.0,105970.0,0.86031567]
[1749398036361,0.57436211,105980.0,105970.0,0.86031567]
[1749398036564,0.85320529,105980.0,105970.0,1.04083885]
[1749398037364,0.85300529,105980.0,105970.0,1.04083885]
[1749398037565,0.85320529,105980.0,105970.0,1.04083885]
[1749398037866,0.85385515,105980.0,105970.0,1.04083885]
[1749398038368,0.85385515,105980.0,105970.0,0.86031567]
[1749398038956,0.75553515,105980.0,105970.0,0.86031567]
[1749398039160,0.85385515,105980.0,105970.0,1.04083885]
[1749398039364,0.85365515,105980.0,105970.0,1.04083885]
[1749398039562,0.85385515,105980.0,105970.0,1.04083885]
[1749398040667,0.67333197,105980.0,105970.0,1.04083885]
[1749398040855,0.85385515,105980.0,105970.0,1.04083885]
[1749398041368,0.49305515,105980.0,105970.0,1.04083885]
[1749398041567,0.85385515,105980.0,105970.0,1.04083885]
[1749398041768,0.49305515,105980.0,105970.0,1.04083885]
[1749398043867,0.85385515,105980.0,105970.0,1.04083885]
[1749398044768,0.75553515,105980.0,105970.0,1.04083885]
[1749398044969,0.49305515,105980.0,105970.0,1.04083885]
[1749398045366,0.31253197,105980.0,105970.0,0.89355968]
[1749398045871,0.31233197,105980.0,105970.0,0.89355968]
[1749398046067,0.31253197,105980.0,105970.0,0.89355968]
[1749398046272,0.31233197,105980.0,105970.0,0.89355968]
[1749398046570,0.31253197,105980.0,105970.0,0.89355968]
[1749398047565,0.31253197,105980.0,105970.0,1.25435968]
[1749398049469,0.31249197,105980.0,105970.0,1.25435968]
[1749398051365,0.49301515,105980.0,105970.0,0.89355968]
[1749398054373,0.31249197,105980.0,105970.0,0.89355968]
[1749398054575,0.31249197,105980.0,105970.0,1.25435968]
[1749398055472,0.29313688,105980.0,105970.0,1.25435968]
[1749398058182,0.19485688,105980.0,105970.0,1.25435968]
[1749398058382,0.29313688,105980.0,105970.0,1.25435968]
[1749398069199,0.29313688,105980.0,105970.0,1.46055662]
[1749398072383,0.4761217,105990.0,105980.0,0.1886091]
[1749398072590,0.4761217,105990.0,105980.0,1.37083546]
[1749398072790,0.4761217,105990.0,105980.0,1.5770324]
[1749398072990,0.4763217,105990.0,105980.0,1.5770324]
[1749398073197,0.4763217,105990.0,105980.0,1.6093324]
[1749398073591,0.4763217,105990.0,105980.0,1.42880922]
[1749398074091,0.4773217,105990.0,105980.0,1.42980922]
[1749398074299,0.2880129,105990.0,105980.0,1.6103324]
[1749398074490,0.2890129,105990.0,105980.0,1.6409324]
[1749398074689,0.0021416,105990.0,105980.0,1.6409324]
[1749398074887,0.11737108,106000.0,105990.0,0.1885913]
[1749398075097,0.01909108,106000.0,105990.0,0.82241448]
[1749398075485,0.01929108,106000.0,105990.0,0.82241448]
[1749398075690,0.20786458,106000.0,105990.0,0.82241448]
[1749398075887,0.20766458,106000.0,105990.0,0.86014448]
[1749398076096,0.20786458,106000.0,105990.0,0.86014448]
[1749398076294,0.20786458,106000.0,105990.0,1.0661384]
[1749398076800,0.20986458,106000.0,105990.0,1.07636738]
[1749398077101,0.21186458,106000.0,105990.0,1.07736738]
[1749398077700,0.21186458,106000.0,105990.0,0.87137346]
[1749398078601,0.21186458,106000.0,105990.0,1.01835452]
[1749398079200,0.0042,106000.0,105990.0,1.01835452]
[1749398079406,0.1927735,106000.0,105990.0,0.83780036]
[1749398079596,0.1927735,106000.0,105990.0,1.01832354]
[1749398081604,0.1927735,106000.0,105990.0,1.41832354]
[1749398084209,0.1927735,106000.0,105990.0,1.27137346]
[1749398084707,0.1927735,106000.0,105990.0,1.47736738]
[1749398085409,0.2890735,106000.0,105990.0,1.84306738]
[1749398085609,0.2890735,106000.0,105990.0,1.45166738]
[1749398086010,0.2890735,106000.0,105990.0,1.59851401]
[1749398086203,0.2890735,106000.0,105990.0,1.39252009]
[1749398088217,0.46959668,106000.0,105990.0,1.39252009]
[1749398088509,0.46959668,106000.0,105990.0,0.96492009]
[1749398088703,0.46959668,106000.0,105990.0,1.39252009]
[1749398089499,0.83039668,106000.0,105990.0,0.58657663]
[1749398089701,1.01091986,106000.0,105990.0,0.58658038]
[1749398089915,1.01091986,106000.0,105990.0,1.01418038]
[1749398090210,1.01496864,106000.0,105990.0,0.86733]
[1749398092102,1.01496864,106000.0,105990.0,0.43973]
[1749398092299,1.01496864,106000.0,105990.0,0.86749]
[1749398093414,1.01496864,106000.0,105990.0,0.43973]
[1749398093614,1.01496864,106000.0,105990.0,0.86761]
[1749398093811,1.01496864,106000.0,105990.0,0.43973]
[1749398099514,1.10931264,106000.0,105990.0,0.43973]
[1749398100106,1.53707264,106000.0,105990.0,0.43973]
[1749398101817,1.44272864,106000.0,105990.0,0.43973]
[1749398102316,1.54188864,106000.0,105990.0,0.43973]
[1749398104118,1.11320864,106000.0,105990.0,0.43973]
[1749398106321,1.29373182,106000.0,105990.0,0.43973]
[1749398107821,1.29373182,106000.0,105990.0,0.3632175]
[1749398108117,1.29373182,106000.0,105990.0,0.3220412]
[1749398108426,0.1886091,105980.0,105970.0,0.0001416]
[1749398108621,1.3887137,105980.0,105970.0,0.0001416]
[1749398108817,1.4816137,105980.0,105970.0,0.0001416]
[1749398109718,1.4826137,105980.0,105970.0,0.0021416]
[1749398110322,1.4836137,105980.0,105970.0,0.0031416]
[1749398111226,1.30324306,105980.0,105970.0,0.0031416]
[1749398115527,1.30388306,105980.0,105970.0,0.0031416]
[1749398115721,1.30388306,105980.0,105970.0,0.0350416]
[1749398118421,1.30388306,105980.0,105970.0,0.1525407]
[1749398118622,1.20500306,105980.0,105970.0,0.1525407]
[1749398118824,1.20500306,105980.0,105970.0,0.1206407]
[1749398119031,1.30388306,105980.0,105970.0,0.1206407]
[1749398119327,0.58228306,105980.0,105970.0,0.1519407]
[1749398119722,1.30388306,105980.0,105970.0,0.1519407]
[1749398119923,1.20500306,105980.0,105970.0,0.1519407]
[1749398120121,1.30388306,105980.0,105970.0,0.1834407]
[1749398120321,1.27348306,105980.0,105970.0,0.1834407]
[1749398120525,1.24543184,105980.0,105970.0,0.2147407]
[1749398120825,1.24543184,105980.0,105970.0,0.4033677]
[1749398121026,1.24543184,105980.0,105970.0,0.2147407]
[1749398121935,1.24543184,105980.0,105970.0,0.0972416]
[1749398122233,1.21503184,105980.0,105970.0,0.2858686]
[1749398123838,1.21503184,105980.0,105970.0,0.40354306]
[1749398128239,1.03435612,105980.0,105970.0,0.40354306]
[1749398129736,1.21503184,105980.0,105970.0,0.40354306]
[1749398129936,1.24553184,105980.0,105970.0,0.40354306]
[1749398130442,0.78585184,105980.0,105970.0,0.40354306]
[1749398130742,0.88473184,105980.0,105970.0,0.55039344]
[1749398131243,0.88467748,105980.0,105970.0,0.55039344]
[1749398131745,0.85417748,105980.0,105970.0,0.61334034]
[1749398132041,0.85437748,105980.0,105970.0,0.61334034]
[1749398136851,0.88447748,105980.0,105970.0,0.61334034]
[1749398137047,0.52367748,105980.0,105970.0,0.61334034]
[1749398137251,0.88447748,105980.0,105970.0,0.61334034]
[1749398138648,0.88447748,105980.0,105970.0,0.58204034]
[1749398138851,0.52367748,105980.0,105970.0,0.58204034]
[1749398139055,0.88447748,105980.0,105970.0,0.58204034]
[1749398139256,0.94777748,105980.0,105970.0,0.58204034]
[1749398140953,0.94777748,105980.0,105970.0,0.36991898]
[1749398144657,0.94777748,105980.0,105970.0,0.14999198]
[1749398144853,1.12839884,105980.0,105970.0,0.14999198]
[1749398145058,1.12827884,105980.0,105970.0,0.14999198]
[1749398148058,1.13772393,105980.0,105970.0,0.14999198]
[1749398148253,1.12827884,105980.0,105970.0,0.14999198]
[1749398151058,0.76703612,105980.0,105970.0,0.14999198]
[1749398151257,1.12827884,105980.0,105970.0,0.14999198]
[1749398158860,1.12827884,105980.0,105970.0,0.26787579]
[1749398159059,1.12827884,105980.0,105970.0,0.26787655]
[1749398163363,1.12827884,105980.0,105970.0,0.12102617]
[1749398164269,1.12827884,105980.0,105970.0,0.26787655]
[1749398165468,1.12827884,105980.0,105970.0,0.12102617]
[1749398165769,1.12827884,105980.0,105970.0,0.26787655]
[1749398166461,0.73593612,105980.0,105970.0,0.51924034]
[1749398166662,0.91655748,105980.0,105970.0,0.55194034]
[1749398166860,0.91635748,105980.0,105970.0,0.58404034]
[1749398167062,0.91655748,105980.0,105970.0,0.58404034]
[1749398167261,0.91655748,105980.0,105970.0,0.61554034]
[1749398167462,0.78559748,105980.0,105970.0,0.61554034]
[1749398167663,0.85425748,105980.0,105970.0,0.61554034]
[1749398167870,0.85405748,105980.0,105970.0,0.61554034]
[1749398168071,0.85425748,105980.0,105970.0,0.61554034]
[1749398170472,0.85425748,105980.0,105970.0,0.43491898]
[1749398174077,0.85425748,105980.0,105970.0,0.24629198]
[1749398174271,1.03487884,105980.0,105970.0,0.43491898]
[1749398174473,1.06727884,105980.0,105970.0,0.43491898]
[1749398174776,0.88665748,105980.0,105970.0,0.43491898]
[1749398175976,0.88665748,105980.0,105970.0,0.24629198]
[1749398178177,0.91825748,105980.0,105970.0,0.24629198]
[1749398179079,0.55745748,105980.0,105970.0,0.24629198]
[1749398179286,0.91825748,105980.0,105970.0,0.43491898]
[1749398179782,0.91825748,105980.0,105970.0,0.21479198]
[1749398179981,0.91825748,105980.0,105970.0,0.40341898]
[1749398181683,0.55745748,105980.0,105970.0,0.40341898]
[1749398181884,0.91825748,105980.0,105970.0,0.21479198]
[1749398183882,0.55745748,105980.0,105970.0,0.21479198]
[1749398184082,0.91825748,105980.0,105970.0,0.21479198]
[1749398187376,0.55745748,105980.0,105970.0,0.21479198]
[1749398187582,0.91825748,105980.0,105970.0,0.21479198]
[1749398191188,0.91825748,105980.0,105970.0,0.40341898]
[1749398191683,0.91825748,105980.0,105970.0,0.21479198]
[1749398192485,0.91825748,105980.0,105970.0,0.39541334]
[1749398193082,0.95065748,105980.0,105970.0,0.39541334]
[1749398195187,0.58985748,105980.0,105970.0,0.39541334]
[1749398195389,0.95065748,105980.0,105970.0,0.39541334]
[1749398196286,0.95065748,105980.0,105970.0,0.58404044]
[1749398196984,0.95065748,105980.0,105970.0,0.40341908]
[1749398197692,0.58985748,105980.0,105970.0,0.40341908]
[1749398197887,0.95065748,105980.0,105970.0,0.40341908]
[1749398198789,0.95065748,105980.0,105970.0,0.18269198]
[1749398199792,0.95065748,105980.0,105970.0,0.37131898]
[1749398201392,0.95065748,105980.0,105970.0,0.18269198]
[1749398202193,0.58985748,105980.0,105970.0,0.18269198]
[1749398202389,0.58985748,105980.0,105970.0,0.37131898]
[1749398202390,0.95065748,105980.0,105970.0,0.37131898]
[1749398202894,0.95045748,105980.0,105970.0,0.37131898]
[1749398203094,0.95065748,105980.0,105970.0,0.37131898]
[1749398204091,0.58985748,105980.0,105970.0,0.37131898]
[1749398204289,0.95065748,105980.0,105970.0,0.37131898]
[1749398204886,0.95065748,105980.0,105970.0,0.55194034]
[1749398205292,0.58985748,105980.0,105970.0,0.55194034]
[1749398205490,0.95065748,105980.0,105970.0,0.55194034]
[1749398205697,0.95065748,105980.0,105970.0,0.58968034]
[1749398206394,0.57487612,105980.0,105970.0,0.7703017]
[1749398206596,0.57487612,105980.0,105970.0,0.71122388]
[1749398206896,0.67299612,105980.0,105970.0,0.71122388]
[1749398207088,0.67319612,105980.0,105970.0,0.71122388]
[1749398207292,0.67319612,105980.0,105970.0,0.71143898]
[1749398210095,0.67319612,105980.0,105970.0,0.50522996]
[1749398210284,0.31239612,105980.0,105970.0,0.50522996]
[1749398211297,0.31239612,105980.0,105970.0,0.65241315]
[1749398219603,0.67363884,105980.0,105970.0,0.18806479]
[1749398219795,1.13113884,105980.0,105970.0,0.15857467]
[1749398220000,1.03281884,105980.0,105970.0,0.15857467]
[1749398220300,0.95051748,105980.0,105970.0,0.52782303]
[1749398220701,0.95051748,105980.0,105970.0,0.95562303]
[1749398221001,0.95051748,105980.0,105970.0,0.33919603]
[1749398221301,0.95051748,105980.0,105970.0,0.79648615]
[1749398227297,0.95051748,105980.0,105970.0,0.98511315]
[1749398227607,0.95051748,105980.0,105970.0,0.79648615]
[1749398227904,0.58971748,105980.0,105970.0,0.79648615]
[1749398228108,0.95051748,105980.0,105970.0,0.79648615]
[1749398228604,0.95051748,105980.0,105970.0,0.98511315]
[1749398228803,0.95051748,105980.0,105970.0,0.79648615]
[1749398229204,0.95051748,105980.0,105970.0,0.98511315]
[1749398229708,0.95051748,105980.0,105970.0,0.79648615]
[1749398230009,0.95051748,105980.0,105970.0,0.98511315]
[1749398230309,0.95031748,105980.0,105970.0,0.98511315]
[1749398230710,0.95019822,105980.0,105970.0,0.79648615]
[1749398231115,0.95039822,105980.0,105970.0,0.79648615]
[1749398240519,1.13101958,105980.0,105970.0,0.61586479]
[1749398244119,0.95039822,105980.0,105970.0,0.61586479]
[1749398244320,0.76977686,105980.0,105970.0,0.61586479]
[1749398244521,0.95039822,105980.0,105970.0,0.61586479]
[1749398244823,0.58959822,105980.0,105970.0,0.61586479]
[1749398245014,0.95039822,105980.0,105970.0,0.61586479]
[1749398246117,0.95039822,105980.0,105970.0,0.80449179]
[1749398246821,0.58959822,105980.0,105970.0,0.80449179]
[1749398247022,0.95039822,105980.0,105970.0,0.80449179]
[1749398247217,0.95039822,105980.0,105970.0,0.98511315]
[1749398247417,0.95039822,105980.0,105970.0,1.01711315]
[1749398247620,0.95019822,105980.0,105970.0,1.01711315]
[1749398247825,0.95039822,105980.0,105970.0,1.01711315]
[1749398251423,0.85207822,105980.0,105970.0,1.04721315]
[1749398251621,0.95039822,105980.0,105970.0,1.04721315]
[1749398251821,0.88649822,105980.0,105970.0,1.07921315]
[1749398252325,0.88649822,105980.0,105970.0,0.93202996]
[1749398252629,0.88649822,105980.0,105970.0,1.13823898]
[1749398254524,0.85369822,105980.0,105970.0,1.13823898]
[1749398257628,0.88689822,105980.0,105970.0,1.13823898]